bitfinex/quotes_ETHUSD_20250823
["timestamp","ask_amount","ask_price","bid_price","bid_amount"]
[1755908259987,16.95925796,4817.9,4817.8,0.021]
[1755908263687,17.30805796,4817.9,4817.8,0.021]
[1755908264387,0.66,4817.8,4817.2,0.104]
[1755908264703,13.39425796,4817.3,4817.2,0.104]
[1755908264908,18.54925796,4817.3,4817.2,0.104]
[1755908265206,18.65325796,4817.3,4816.6,0.104]
[1755908265432,0.36947851,4817.2,4816.6,0.104]
[1755908265612,0.3013,4816.9,4816.3,0.104]
[1755908265816,5.78525216,4816.9,4816.1,0.104]
[1755908265982,5.76447365,4816.9,4816.1,0.104]
[1755908268096,5.76447365,4816.9,4816.1,0.5771]
[1755908268498,0.104,4817.0,4816.1,0.5771]
[1755908268688,3.58077851,4816.9,4816.8,0.7403]
[1755908268903,3.58077851,4816.9,4816.8,0.3073]
[1755908269492,3.58077851,4816.9,4816.8,0.7403]
[1755908270388,0.02077851,4816.9,4816.8,30.7403]
[1755908270585,3.559,4816.9,4816.8,30.7403]
[1755908271704,0.02077851,4817.2,4816.8,30.7403]
[1755908271902,3.559,4817.2,4816.9,30.90438864]
[1755908272106,0.02077851,4817.6,4817.1,0.2873]
[1755908272312,3.558,4817.5,4817.2,40.0]
[1755908272617,0.02077851,4818.2,4817.5,30.0]
[1755908272618,3.558,4817.6,4817.5,30.0]
[1755908272784,3.558,4817.7,4817.5,30.7203]
[1755908272986,0.02077851,4818.2,4817.5,30.7203]
[1755908272987,3.558,4817.8,4817.6,30.433]
[1755908273184,3.558,4817.8,4817.7,30.7203]
[1755908273417,3.558,4818.0,4817.7,30.7203]
[1755908273620,0.02077851,4817.9,4817.8,2.59]
[1755908274118,3.558,4818.0,4817.9,0.7203]
[1755908275729,3.558,4818.0,4817.4,0.433]
[1755908275924,0.02077851,4817.9,4817.5,9.116]
[1755908276120,3.558,4817.8,4817.5,0.433]
[1755908276320,0.02077851,4817.7,4817.6,30.433]
[1755908276525,3.558,4817.8,4817.7,30.0]
[1755908276728,3.558,4817.8,4817.7,30.7203]
[1755908278195,0.02077851,4818.2,4817.7,30.7203]
[1755908278426,0.02077851,4818.2,4817.8,30.433]
[1755908278601,0.02077851,4818.2,4818.1,0.3913]
[1755908278797,3.36490583,4818.1,4817.9,0.433]
[1755908279024,0.02077851,4818.0,4817.4,0.623256]
[1755908279214,0.02077851,4818.0,4817.9,0.2873]
[1755908279418,0.02077851,4818.0,4817.9,0.3913]
[1755908279820,0.02077851,4818.0,4817.9,0.8243]
[1755908280729,0.02077851,4818.0,4817.9,0.8243]
[1755908280931,0.30577851,4818.0,4817.9,0.104]
[1755908281104,13.51129119,4818.0,4816.8,0.02]
[1755908281303,13.51129119,4818.0,4816.9,30.0]
[1755908281304,13.09295796,4817.2,4816.9,30.0]
[1755908281523,0.02077851,4817.1,4816.9,30.0]
[1755908281709,3.555,4817.8,4817.1,30.3913]
[1755908281913,3.555,4817.8,4817.2,30.0]
[1755908282128,3.36490583,4817.9,4817.7,0.3913]
[1755908282298,3.38568434,4817.9,4817.8,30.0]
[1755908282498,3.36490583,4817.9,4817.8,30.7203]
[1755908283335,3.36490583,4817.9,4817.8,30.8243]
[1755908283918,3.36490583,4818.7,4817.8,30.8243]
[1755908284118,3.36490583,4818.7,4818.6,0.104]
[1755908284331,3.36490583,4818.7,4818.6,30.3913]
[1755908284546,3.36490583,4818.7,4818.6,30.8243]
[1755908285128,3.36490583,4818.7,4818.6,31.14152591]
[1755908285855,3.36490583,4818.7,4818.6,30.8243]
[1755908286224,3.36490583,4818.7,4818.6,30.98957622]
[1755908286421,3.36490583,4818.7,4818.6,30.8243]
[1755908286850,3.36490583,4818.7,4818.6,34.3793]
[1755908288073,3.36490583,4818.7,4818.6,33.9463]
[1755908288274,3.36490583,4818.7,4818.6,34.3783]
[1755908289550,3.36490583,4818.7,4818.6,33.9453]
[1755908290564,3.36490583,4818.7,4818.6,33.9463]
[1755908292350,3.36690583,4818.7,4818.6,33.9463]
[1755908292963,3.36690583,4818.7,4818.6,33.9433]
[1755908293541,3.36690583,4818.7,4818.6,34.3763]
[1755908293865,3.36690583,4818.7,4818.6,34.999366]
[1755908294634,3.36690583,4818.7,4818.6,35.31659191]
[1755908295034,0.002,4818.7,4818.6,35.31659191]
[1755908299084,0.002,4818.7,4818.6,35.31659191]
[1755908299258,0.02,4818.8,4818.6,35.31659191]
[1755908299455,0.02,4818.8,4818.7,30.77642591]
[1755908299659,0.02,4818.8,4818.7,31.06642591]
[1755908301478,0.02,4818.8,4818.7,34.61342591]
[1755908302190,0.02,4818.8,4818.7,31.06642591]
[1755908302482,0.02,4818.8,4818.7,30.29]
[1755908302668,0.02,4818.8,4818.7,33.546]
[1755908302982,0.3346,4818.8,4818.7,33.546]
[1755908303349,0.02,4818.8,4818.7,33.546]
[1755908303764,0.3346,4818.8,4818.7,33.546]
[1755908304087,0.3346,4818.8,4818.7,33.671436]
[1755908304388,0.3346,4818.8,4818.7,30.125436]
[1755908304680,0.3346,4818.8,4818.7,33.671436]
[1755908305461,0.3346,4818.8,4818.7,30.125436]
[1755908305661,0.3346,4818.8,4817.8,0.001]
[1755908305662,5.67853535,4818.8,4817.8,0.001]
[1755908305861,13.09295796,4817.9,4817.8,0.001]
[1755908306095,13.40755796,4817.9,4817.4,0.001]
[1755908306250,13.09295796,4817.3,4817.1,0.001]
[1755908306457,3.88837851,4817.2,4816.8,0.02]
[1755908306692,3.88837851,4817.2,4815.9,0.623305]
[1755908306693,3.88837851,4817.2,4815.9,3.554]
[1755908306856,13.09295796,4816.0,4815.7,3.554]
[1755908307053,0.33537851,4815.9,4815.7,3.554]
[1755908307386,0.78697851,4815.9,4815.8,30.021]
[1755908307688,0.7662,4815.9,4815.8,30.021]
[1755908308870,0.3146,4815.9,4815.8,30.021]
[1755908309056,13.09295796,4816.0,4815.9,30.0]
[1755908309256,13.54455796,4816.7,4815.9,33.842]
[1755908309455,0.02077851,4816.6,4816.0,20.538]
[1755908309756,13.40755796,4816.1,4815.8,0.021]
[1755908310075,0.47237851,4816.0,4815.9,33.552]
[1755908310381,0.7662,4816.0,4815.9,33.552]
[1755908310595,0.3146,4816.0,4815.9,33.552]
[1755908310969,13.09295796,4816.1,4815.9,33.552]
[1755908311311,13.09295796,4816.1,4816.0,30.0]
[1755908311661,13.40755796,4816.1,4816.0,30.0]
[1755908313073,16.77246379,4816.1,4816.0,30.0]
[1755908313670,3.36490583,4816.0,4814.1,1.595]
[1755908313905,3.36490583,4816.0,4813.0,1.595]
[1755908313906,13.40755796,4815.4,4813.0,1.595]
[1755908314069,0.66,4815.2,4814.1,0.62375]
[1755908314267,0.66,4815.2,4813.7,3.555]
[1755908314268,0.3146,4814.9,4813.7,3.555]
[1755908314484,0.66,4814.8,4813.9,0.104]
[1755908314683,0.66,4814.8,4812.8,0.02]
[1755908314684,0.66,4813.9,4812.8,0.124]
[1755908314879,13.40755796,4812.9,4812.8,0.02]
[1755908315387,13.40755796,4812.9,4812.8,0.124]
[1755908318674,10.0,4815.1,4812.8,0.8732]
[1755908318675,0.4516,4814.1,4812.8,0.8732]
[1755908319005,0.02077851,4814.0,4812.9,10.0]
[1755908319206,0.02077851,4814.4,4813.0,10.0]
[1755908319510,0.02077851,4814.4,4813.1,11.595]
[1755908319709,0.02077851,4814.4,4814.0,0.104]
[1755908320004,3.26090583,4813.8,4813.2,3.567]
[1755908320212,0.02077851,4813.7,4813.3,30.0]
[1755908320580,0.02077851,4813.7,4813.6,0.104]
[1755908320775,3.28168434,4813.7,4813.6,30.394]
[1755908320982,3.26090583,4813.7,4813.6,30.7492]
[1755908321693,3.26090583,4813.7,4813.6,34.3182]
[1755908323190,3.26090583,4813.7,4813.6,34.941928]
[1755908325686,3.26090583,4813.7,4813.6,34.942928]
[1755908326794,3.26090583,4813.7,4813.6,35.602928]
[1755908327993,3.26090583,4813.7,4813.6,35.596928]
[1755908328386,3.26090583,4813.7,4813.6,32.033928]
[1755908328711,3.26090583,4813.7,4813.6,35.596928]
[1755908329482,3.26090583,4813.7,4813.6,35.8508435]
[1755908331118,3.26090583,4813.7,4813.6,35.9548435]
[1755908331819,3.26090583,4813.7,4813.6,36.11306933]
[1755908333311,3.01146795,4813.7,4813.6,36.11306933]
[1755908334612,0.02,4814.8,4813.7,0.66]
[1755908334818,0.02,4814.8,4814.7,0.2888]
[1755908335024,0.02,4814.8,4814.7,35.5468]
[1755908335324,0.02,4814.8,4814.7,36.636305]
[1755908336993,0.02,4814.8,4814.7,37.296305]
[1755908341723,0.02,4814.8,4814.7,38.542305]
[1755908342026,0.02,4814.8,4814.7,39.01636171]
[1755908342237,0.022,4814.8,4814.7,39.01636171]
[1755908343440,0.02,4815.8,4815.2,0.66]
[1755908343644,0.02,4815.8,4815.7,0.9488]
[1755908343938,0.02,4815.8,4815.7,36.0958]
[1755908344135,0.02,4815.8,4815.7,36.823119]
[1755908345309,0.02,4815.8,4815.7,37.289119]
[1755908345701,0.02,4815.8,4815.7,37.44239166]
[1755908346133,0.02,4815.8,4815.7,36.97639166]
[1755908346836,0.02,4815.8,4815.7,36.97539166]
[1755908348098,0.02,4815.8,4815.7,37.43089166]
[1755908348603,0.02,4815.8,4815.7,37.68480716]
[1755908349328,0.02,4815.8,4815.7,34.13480716]
[1755908349497,0.02,4815.8,4815.7,37.68480716]
[1755908352441,0.02,4815.8,4815.7,7.68380716]
[1755908352614,0.02,4815.8,4815.7,7.21780716]
[1755908352812,0.02,4815.8,4815.7,7.68380716]
[1755908353012,0.02,4815.8,4815.7,37.68380716]
[1755908353408,0.4527,4816.6,4815.8,30.0]
[1755908353605,0.4527,4816.6,4815.9,4.209]
[1755908353807,0.4527,4816.6,4816.5,0.104]
[1755908354139,0.7553,4816.6,4816.5,33.653]
[1755908354433,0.3026,4816.6,4816.5,33.653]
[1755908354632,0.3026,4816.6,4816.5,34.27628]
[1755908356035,3.01146795,4816.7,4816.5,34.27628]
[1755908356236,3.01146795,4816.7,4816.6,31.61576153]
[1755908356441,3.01146795,4816.7,4816.6,32.7977155]
[1755908356638,3.01146795,4816.7,4816.6,33.4209255]
[1755908357016,3.01146795,4816.7,4816.6,33.57811757]
[1755908357221,3.01146795,4816.7,4816.6,33.32420207]
[1755908357815,3.01146795,4816.7,4816.6,33.79020207]
[1755908358822,0.022,4816.8,4816.7,0.66]
[1755908359021,0.022,4816.8,4816.7,34.4967]
[1755908359852,0.022,4816.8,4816.7,35.119888]
[1755908360062,0.022,4816.8,4816.7,41.5285133]
[1755908360367,0.022,4816.8,4816.7,43.3975823]
[1755908361049,0.002,4817.1,4816.7,43.3975823]
[1755908361248,0.002,4817.1,4817.0,2.01]
[1755908361443,0.002,4817.1,4817.0,36.34151651]
[1755908361685,0.002,4817.1,4817.0,36.88885671]
[1755908362338,0.002,4817.1,4817.0,39.42798659]
[1755908362539,0.002,4817.1,4817.0,42.97598659]
[1755908363160,0.002,4817.1,4817.0,36.99185671]
[1755908363469,0.4738,4818.7,4817.1,2.58805671]
[1755908363672,0.4738,4818.7,4817.4,0.66]
[1755908363880,0.4738,4818.7,4818.6,0.104]
[1755908364075,0.7795,4818.7,4818.6,35.247]
[1755908365590,0.7795,4818.7,4818.6,5.247]
[1755908366668,0.7795,4818.7,4818.6,35.247]
[1755908366868,0.7795,4818.7,4818.6,31.699]
[1755908367065,0.3077,4818.7,4818.6,35.247]
[1755908367674,0.002,4818.7,4818.6,35.247]
[1755908368104,0.3077,4818.7,4818.6,35.247]
[1755908368292,0.7795,4818.7,4818.6,35.246]
[1755908370270,0.3077,4818.7,4818.6,35.246]
[1755908373035,0.002,4818.7,4818.6,35.246]
[1755908373241,0.3077,4818.7,4818.6,35.246]
[1755908375420,0.7795,4818.7,4818.6,35.906]
[1755908376417,0.3077,4818.7,4818.6,35.906]
[1755908377930,1.52561309,4818.7,4816.3,3.71722887]
[1755908378101,1.52561309,4818.7,4817.7,1.594]
[1755908378102,13.09134314,4818.4,4817.7,1.594]
[1755908378296,0.49353852,4818.3,4817.8,31.594]
[1755908378500,0.49353852,4818.3,4817.9,31.594]
[1755908378852,0.49353852,4818.3,4818.0,33.546]
[1755908379006,1.92683799,4818.3,4818.1,30.0]
[1755908379201,0.3057,4818.2,4818.1,3.546]
[1755908379531,0.7775,4818.2,4818.1,33.546]
[1755908382240,0.3057,4818.2,4818.1,33.546]
[1755908382411,0.7775,4818.2,4818.1,33.546]
[1755908382926,0.3057,4818.2,4818.1,33.546]
[1755908386260,0.3057,4818.2,4818.1,3.546]
[1755908387037,0.00096001,4818.3,4818.1,5.141]
[1755908387443,0.00096001,4818.3,4818.2,30.0]
[1755908387643,0.30666001,4818.3,4818.2,30.0]
[1755908387966,0.30666001,4818.3,4818.2,30.104]
[1755908388467,3.31812796,4818.3,4818.2,30.104]
[1755908388672,4.65111607,4818.3,4818.2,0.104]
[1755908388834,4.67189458,4818.3,4818.2,0.104]
[1755908389164,4.65111607,4818.3,4818.2,0.104]
[1755908389366,4.67189458,4818.3,4818.2,0.104]
[1755908389563,4.65111607,4818.3,4818.2,0.104]
[1755908389737,4.67189458,4818.3,4818.2,0.104]
[1755908389940,4.65111607,4818.3,4818.2,0.104]
[1755908390246,4.67189458,4818.3,4818.2,0.104]
[1755908390568,4.65111607,4818.3,4818.2,0.104]
[1755908390861,4.67189458,4818.3,4818.2,0.104]
[1755908391166,4.65111607,4818.3,4818.2,0.104]
[1755908391366,4.67189458,4818.3,4818.2,0.104]
[1755908391568,4.65111607,4818.3,4818.2,0.104]
[1755908391776,4.67189458,4818.3,4818.2,0.104]
[1755908391976,11.54711607,4818.3,4817.4,10.0]
[1755908392141,3.82633592,4818.2,4818.0,0.104]
[1755908392480,5.59499161,4818.1,4817.8,0.001]
[1755908392766,2.92824646,4818.0,4816.5,10.0]
[1755908392977,5.26985309,4817.3,4816.9,20.028]
[1755908393134,0.97962383,4817.2,4817.0,0.104]
[1755908393336,0.3034,4817.1,4817.0,0.104]
[1755908393558,0.7343,4817.1,4817.0,0.104]
[1755908394964,5.26985309,4817.1,4816.5,3.545]
[1755908395282,5.45395309,4817.1,4817.0,0.104]
[1755908399158,4.2,4817.1,4817.0,34.3005]
[1755908399482,4.2,4817.7,4817.0,34.4045]
[1755908399651,9.46985309,4818.1,4817.1,30.461]
[1755908399845,9.46985309,4818.1,4817.6,0.104]
[1755908400078,9.46985309,4818.1,4818.0,0.104]
[1755908400281,9.56655309,4818.1,4818.0,0.104]
[1755908400748,9.46985309,4818.1,4818.0,30.104]
[1755908402966,9.46985309,4818.1,4818.0,30.3975]
[1755908403278,9.46985309,4818.1,4818.0,30.8585]
[1755908403476,0.002,4818.3,4818.0,34.2995]
[1755908403677,0.002,4818.3,4818.1,30.0]
[1755908403854,0.002,4818.3,4818.2,0.2935]
[1755908404181,0.002,4818.3,4818.2,30.77525463]
[1755908404384,0.002,4818.3,4818.2,30.7545]
[1755908405151,0.002,4818.3,4818.2,30.7545]
[1755908405351,0.002,4818.3,4818.2,33.1135]
[1755908405551,0.002,4818.7,4818.3,0.66]
[1755908405751,0.002,4818.7,4818.6,0.2935]
[1755908405948,0.002,4818.7,4818.6,30.3975]
[1755908406181,0.002,4818.7,4818.6,30.8585]
[1755908406983,0.002,4818.7,4818.6,34.4035]
[1755908407669,0.002,4818.7,4818.6,35.0635]
[1755908407886,0.1254359,4818.9,4818.7,0.89276456]
[1755908408190,0.1254359,4818.9,4818.8,40.31425205]
[1755908408483,0.1254359,4818.9,4818.8,34.2995]
[1755908408956,0.1254359,4818.9,4818.8,34.9595]
[1755908409951,0.1254359,4818.9,4818.8,35.11362902]
[1755908411114,0.1254359,4818.9,4818.8,35.34639358]
[1755908411249,0.1254359,4818.9,4818.8,35.45039358]
[1755908411449,2.35613382,4819.0,4818.9,0.66]
[1755908411654,1.85784109,4819.0,4818.9,31.95307573]
[1755908411855,1.81566584,4819.0,4818.9,31.95307573]
[1755908412050,1.34066584,4819.0,4818.9,31.95307573]
[1755908413087,1.34066584,4819.0,4818.9,35.49707573]
[1755908413684,1.34066584,4819.0,4818.9,39.29526456]
[1755908414084,1.34066584,4819.0,4818.9,39.91799656]
[1755908414607,1.34066584,4819.0,4818.9,36.37399656]
[1755908414770,1.34066584,4819.0,4818.9,39.91699656]
[1755908415707,1.09153521,4819.0,4818.9,35.25299656]
[1755908415886,1.09153521,4819.0,4818.9,35.377232]
[1755908416069,1.09153521,4819.0,4818.9,38.920232]
[1755908416497,1.09153521,4819.0,4818.9,45.920232]
[1755908416873,1.09153521,4819.0,4818.9,41.920232]
[1755908417070,1.09153521,4819.0,4818.9,42.580232]
[1755908418097,1.09153521,4819.0,4818.9,41.825732]
[1755908418983,1.09153521,4819.0,4818.9,34.824732]
[1755908419181,1.36443521,4819.0,4818.9,32.216732]
[1755908419486,1.79893521,4819.0,4818.9,35.136]
[1755908419690,1.36443521,4819.0,4818.9,35.136]
[1755908420008,1.79893521,4819.0,4818.9,35.136]
[1755908421676,1.36443521,4819.0,4818.9,35.136]
[1755908423214,1.79893521,4819.0,4818.9,35.136]
[1755908425717,1.36443521,4819.0,4818.9,35.136]
[1755908425917,1.36443521,4819.0,4818.9,35.24]
[1755908429217,1.36443521,4819.0,4818.9,5.24]
[1755908429922,1.36443521,4819.0,4818.9,35.24]
[1755908431946,1.36443521,4819.0,4818.0,0.001]
[1755908431947,1.98082873,4819.0,4818.0,0.001]
[1755908432093,11.60390717,4818.1,4818.0,0.001]
[1755908432298,11.87890717,4818.1,4818.0,0.001]
[1755908432526,12.31340717,4818.1,4818.0,0.001]
[1755908432826,13.54474789,4818.1,4818.0,0.001]
[1755908435314,0.275,4818.1,4818.0,30.001]
[1755908435519,0.4361,4818.8,4818.0,30.001]
[1755908435715,0.275,4818.1,4818.0,0.001]
[1755908435917,0.275,4818.1,4818.0,33.542]
[1755908439341,0.275,4818.1,4818.0,31.527]
[1755908439547,0.275,4818.1,4818.0,26.286]
[1755908439865,0.275,4818.1,4818.0,0.001]
[1755908439866,0.7095,4818.1,4818.0,0.001]
[1755908440153,0.7095,4818.1,4818.0,3.543]
[1755908440868,0.7095,4818.1,4818.0,0.001]
[1755908440869,12.31340717,4818.1,4818.0,0.001]
[1755908441029,13.54474789,4818.1,4818.0,0.001]
[1755908441228,13.54474789,4818.1,4817.9,0.001]
[1755908441443,0.4345,4818.0,4817.5,0.001]
[1755908441640,0.4345,4818.0,4816.2,1.595]
[1755908441641,0.2766,4817.6,4816.2,1.595]
[1755908441959,0.2766,4817.6,4817.0,0.105]
[1755908441960,11.60390717,4817.2,4817.0,0.105]
[1755908442164,1.97429072,4817.1,4816.4,0.104]
[1755908442532,0.4029,4817.0,4816.0,0.001]
[1755908442858,0.307,4816.1,4816.0,0.105]
[1755908443235,0.7099,4816.1,4816.0,0.001]
[1755908446051,11.23134072,4818.1,4816.0,0.001]
[1755908446052,10.0,4818.1,4816.0,3.859]
[1755908446252,0.4361,4821.0,4816.2,1.906]
[1755908446453,0.4361,4821.0,4818.9,0.42]
[1755908446652,0.4361,4821.0,4818.9,37.59013013]
[1755908446978,0.4361,4821.0,4818.9,34.56363013]
[1755908447136,0.4361,4821.0,4818.9,37.42216129]
[1755908447542,0.4361,4821.0,4818.9,37.70643002]
[1755908448556,0.4361,4821.0,4818.9,38.04509729]
[1755908448862,0.4361,4821.0,4818.9,37.70643002]
[1755908451151,0.4361,4821.0,4818.9,37.86323548]
[1755908451978,0.4357,4820.7,4818.9,37.86323548]
[1755908453645,0.4357,4820.7,4818.9,37.24029948]
[1755908454481,0.02,4821.8,4818.9,35.96599402]
[1755908454482,0.4357,4820.3,4818.9,35.96599402]
[1755908454653,0.4808,4819.8,4818.9,35.64999402]
[1755908454979,0.4808,4819.8,4818.9,35.95949402]
[1755908455184,0.022,4819.8,4818.9,35.95949402]
[1755908455481,0.022,4819.8,4818.9,36.43059402]
[1755908456259,4.2,4819.1,4818.9,36.43059402]
[1755908458390,4.2,4819.1,4818.9,35.95949402]
[1755908460195,4.2,4819.1,4818.9,36.43059402]
[1755908460379,4.2,4819.1,4818.9,35.95949402]
[1755908460903,4.2,4819.1,4818.9,32.38349402]
[1755908461102,4.2,4819.1,4818.9,35.95249402]
[1755908461302,4.2,4819.1,4818.9,36.42359402]
[1755908461521,4.2,4819.1,4818.9,36.97959402]
[1755908461814,4.2,4819.1,4818.9,37.42226129]
[1755908462160,0.002,4819.5,4818.9,37.42226129]
[1755908464682,0.002,4819.5,4818.9,33.85326129]
[1755908464986,0.002,4819.5,4818.9,37.41726129]
[1755908465606,1.34613521,4819.0,4818.9,35.262]
[1755908467566,1.09353521,4819.0,4818.9,35.262]
[1755908467994,1.09353521,4819.0,4818.9,35.5715]
[1755908468192,1.09353521,4819.0,4818.9,37.30926129]
[1755908469195,1.09353521,4819.0,4818.9,36.97059402]
[1755908470086,1.09353521,4819.0,4818.9,35.154]
[1755908470664,1.09353521,4819.0,4818.9,35.4635]
[1755908471967,1.09353521,4819.0,4818.9,35.9346]
[1755908474314,0.8443075,4819.0,4818.9,35.4635]
[1755908474916,0.8443075,4819.0,4818.9,35.4585]
[1755908475381,0.8443075,4819.0,4818.9,35.4575]
[1755908476578,0.8443075,4819.0,4818.9,31.9045]
[1755908476771,0.8443075,4819.0,4818.9,35.4565]
[1755908477491,0.8443075,4819.0,4818.9,5.4565]
[1755908477811,0.8443075,4819.0,4818.9,31.9045]
[1755908477990,0.8443075,4819.0,4818.9,35.4545]
[1755908478192,0.8443075,4819.0,4818.9,35.5585]
[1755908478701,0.8443075,4819.0,4818.9,32.0085]
[1755908478909,0.8443075,4819.0,4818.9,35.5575]
[1755908479504,0.8443075,4819.0,4818.9,5.5575]
[1755908479714,0.8443075,4819.0,4818.9,35.5575]
[1755908480021,1.0343075,4819.0,4818.9,35.5575]
[1755908481127,1.0343075,4819.0,4818.9,35.5555]
[1755908481326,1.7128075,4819.0,4818.9,30.104]
[1755908481625,1.39073825,4819.0,4818.9,33.651]
[1755908481924,1.2869075,4819.0,4818.9,33.651]
[1755908482119,1.7128075,4819.0,4818.9,33.651]
[1755908482291,1.7128075,4819.0,4818.9,16.442]
[1755908482690,1.7128075,4819.0,4818.9,33.653]
[1755908482920,1.7128075,4819.0,4818.9,21.158]
[1755908483618,1.7128075,4819.0,4818.9,20.362]
[1755908483823,1.88448825,4819.0,4818.9,6.448]
[1755908483994,1.88448825,4819.0,4818.9,0.104]
[1755908484190,1.2869075,4819.0,4818.9,34.02291069]
[1755908484403,1.2869075,4819.0,4818.9,33.548]
[1755908484608,1.2869075,4819.0,4818.9,33.652]
[1755908485030,1.0343075,4819.0,4818.9,33.652]
[1755908485400,1.0343075,4819.0,4818.9,33.9474]
[1755908485608,1.0343075,4819.0,4818.9,34.3754]
[1755908486008,1.0343075,4819.0,4818.9,34.74631069]
[1755908487016,1.0343075,4819.0,4818.9,30.77031069]
[1755908487331,1.0343075,4819.0,4818.9,34.32431069]
[1755908487634,1.3177075,4819.0,4818.9,33.658]
[1755908488432,1.0343075,4819.0,4818.9,33.658]
[1755908491140,1.0343075,4819.0,4818.9,34.75231069]
[1755908492613,1.0343075,4819.0,4818.9,34.02891069]
[1755908492614,1.0679075,4819.0,4818.9,34.02891069]
[1755908493017,1.0343075,4819.0,4818.9,34.02891069]
[1755908493199,1.0343075,4819.0,4818.9,33.658]
[1755908493425,1.0343075,4819.0,4818.9,33.9534]
[1755908494118,1.0343075,4819.0,4818.9,33.9474]
[1755908496834,1.0343075,4819.0,4818.9,30.3994]
[1755908497034,1.3191075,4819.0,4818.9,30.104]
[1755908497423,1.3191075,4819.0,4818.9,33.65]
[1755908499506,1.3191075,4819.0,4818.9,30.0]
[1755908499948,1.0343075,4819.0,4818.9,33.8424]
[1755908500149,1.0343075,4819.0,4818.9,33.547]
[1755908500354,1.0343075,4819.0,4818.9,30.0]
[1755908500510,1.0343075,4819.0,4818.9,33.548]
[1755908502439,1.0343075,4819.0,4818.9,30.0]
[1755908502639,1.0343075,4819.0,4818.9,33.548]
[1755908502838,1.0343075,4819.0,4818.9,30.0]
[1755908503009,1.3177075,4819.0,4818.9,33.547]
[1755908503205,1.0343075,4819.0,4818.9,33.547]
[1755908503713,0.78504927,4819.0,4818.9,34.97997796]
[1755908506027,0.78504927,4819.0,4818.9,34.64131069]
[1755908506718,0.78504927,4819.0,4818.9,34.21331069]
[1755908506922,0.78504927,4819.0,4818.9,34.64131069]
[1755908508143,0.78934927,4819.0,4818.9,30.0]
[1755908508321,0.78934927,4819.0,4818.9,33.544]
[1755908508856,0.78934927,4819.0,4818.9,30.0]
[1755908509017,0.78934927,4819.0,4818.9,33.544]
[1755908509413,0.78934927,4819.0,4818.9,33.648]
[1755908509645,4.98504927,4819.0,4818.9,34.01891069]
[1755908509846,0.78504927,4819.0,4818.9,35.08547796]
[1755908510543,0.78504927,4819.0,4818.9,31.54147796]
[1755908510753,0.78504927,4819.0,4818.9,35.08547796]
[1755908511412,0.78504927,4819.0,4818.9,34.3759]
[1755908512509,0.78504927,4819.0,4818.9,30.104]
[1755908512759,0.78504927,4819.0,4818.9,34.71258569]
[1755908513428,0.78504927,4819.0,4818.9,34.27628569]
[1755908513623,0.53580158,4819.0,4818.9,34.71258569]
[1755908514653,0.53580158,4819.0,4818.9,30.104]
[1755908514813,0.53580158,4819.0,4818.9,33.648]
[1755908515019,0.53580158,4819.0,4818.9,33.9396]
[1755908515445,4.73580158,4819.0,4818.9,33.9396]
[1755908516113,4.73580158,4819.0,4818.9,34.71258569]
[1755908516344,4.73580158,4819.0,4818.9,35.01999463]
[1755908516865,4.73580158,4819.0,4818.9,35.67999463]
[1755908517011,0.53580158,4819.0,4818.9,35.57599463]
[1755908517409,0.03736836,4819.0,4818.9,35.7704322]
[1755908517618,4.02015175,4820.1,4819.1,0.66]
[1755908517821,4.02015175,4820.1,4819.3,0.66]
[1755908518021,4.02015175,4820.1,4819.5,0.66]
[1755908518218,4.02015175,4820.1,4819.6,45.33443731]
[1755908518423,4.02015175,4820.1,4819.7,30.19443731]
[1755908518671,4.02015175,4820.1,4819.8,33.73943731]
[1755908518840,4.02015175,4820.1,4819.9,30.19443731]
[1755908519041,4.02015175,4820.1,4820.0,33.73943731]
[1755908519352,4.02015175,4820.1,4820.0,34.03103731]
[1755908519659,4.02015175,4820.1,4820.0,33.73943731]
[1755908520451,4.27065175,4820.1,4820.0,33.73843731]
[1755908520757,0.62288,4823.6,4820.0,33.73843731]
[1755908520758,5.26748239,4821.5,4820.1,0.66]
[1755908521059,5.26748239,4821.5,4820.7,0.2916]
[1755908521268,5.26748239,4821.5,4820.7,5.62403731]
[1755908521442,5.26748239,4821.5,4820.7,6.06033731]
[1755908521646,5.26748239,4822.1,4820.7,7.36443194]
[1755908521831,5.26748239,4822.1,4820.7,37.36443194]
[1755908523155,0.022,4821.8,4820.7,37.36443194]
[1755908523737,0.022,4821.8,4820.8,0.66]
[1755908524058,0.022,4821.8,4821.0,0.66]
[1755908524255,0.022,4821.8,4821.2,0.66]
[1755908524554,0.022,4821.8,4821.3,43.7581786]
[1755908524755,0.022,4821.8,4821.7,0.2916]
[1755908524961,0.022,4821.8,4821.7,36.28224088]
[1755908525123,0.022,4821.8,4821.7,37.36263551]
[1755908525322,0.022,4821.8,4821.7,37.05497525]
[1755908525925,0.2725,4821.8,4821.7,35.99038956]
[1755908526124,0.022,4821.8,4821.7,35.33038956]
[1755908526722,0.022,4821.8,4821.7,35.62198956]
[1755908526951,0.022,4821.8,4821.7,35.72598956]
[1755908527545,0.02,4822.8,4821.7,35.62198956]
[1755908527769,0.02,4822.8,4821.8,31.93378419]
[1755908528060,0.02,4822.8,4822.7,0.104]
[1755908528357,0.02,4822.8,4822.7,3.73538956]
[1755908528358,0.2705,4822.8,4822.7,3.73538956]
[1755908528555,0.2705,4822.8,4822.7,33.73538956]
[1755908529067,0.7293,4822.8,4822.7,0.19338956]
[1755908529372,0.7293,4822.8,4822.7,13.26338956]
[1755908530235,0.7293,4822.8,4822.7,33.73538956]